Workbook

Sheet Лист1
I1: Приложение 4
I2: к постановлению администрации города
I3: Усолье-Сибирское
F4: от 29.12.2025 г. №2502-па
I6: «Приложение 4
I7: к муниципальной программе города Усолье-Сибирское
I8: «Развитие жилищно-коммунального хозяйства»
I9: на 2019-2027 годы
A11: Информация об участии муниципального образования «город Усолье-Сибирское» в государственных программах Иркутской области в рамках муниципальной программы города Усолье-Сибирское
A12: «Развитие жилищно-коммунального хозяйства» на 2019-2027 годы
A13: (далее – муниципальная программа)
A15: № п/п | B15: Наименование мероприятия в рамках государственной программы Иркутской области | C15: Наименование мероприятия в рамках муниципальной программы | D15: Год реализации: | E15: Общий объем финансирования, руб. | F15: Федеральный бюджет, руб. | G15: Областной бюджет, руб. | H15: Иные источники финансирования, руб. | I15: Местный бюджет (софинансирование), руб.
A16: 1 | B16: Государственная программа Иркутской области «Развитие жилищно-коммунального хозяйства и повышение энергоэффективности Иркутской области» на 2019-2027 годы Государственная программа Иркутской области «Развитие жилищно-коммунального хозяйства и повышение энергоэффективности Иркутской области» на 2024-2030 годы
A17: 1 | B17: Субсидии на обеспечение мероприятий по предупреждению и ликвидации последствий чрезвычайных ситуаций путем проведения диагностирования внутридомовых систем газоснабжения в многоквартирных домах. Мероприятие «Оказание содействия муниципальным образованиям Иркутской области по обеспечению мероприятий по предупреждению и ликвидации последствий чрезвычайных ситуаций путем проведения диагностирования внутридомовых систем газоснабжения в многоквартирных домах» подпрограммы 7 «Капитальный ремонт многоквартирных домов» на 2019-2025 годы | C17: Основное мероприятие 1.3. "Проведение диагностирования внутридомовых систем газоснабжения в многоквартирных домах" Подпрограммы № 1 «Капитальный ремонт общего имущества в многоквартирных домах, расположенных на территории города Усолье-Сибирское» на 2019-2027 годы | D17: Итого | E17: =F17+G17+H17+I17 -> 877,950.00 | F17: =SUM(F18:F26) -> 0.00 | G17: =SUM(G18:G26) -> 780,400.00 | H17: 0.00 | I17: 97,550.00
D18: 2019 | E18: =F18+G18+H18+I18 -> 0.00 | F18: 0.00 | G18: 0.00 | H18: 0.00 | I18: 0.00
D19: 2020 | E19: 0.00 | F19: 0.00 | G19: 0.00 | H19: 0.00 | I19: 0.00
D20: 2021 | E20: 877,950.00 | F20: 0.00 | G20: 780,400.00 | H20: 0.00 | I20: 97,550.00
D21: 2022 | E21: 0.00 | F21: 0.00 | G21: 0.00 | H21: 0.00 | I21: 0.00
D22: 2023 | E22: 0.00 | F22: 0.00 | G22: 0.00 | H22: 0.00 | I22: 0.00
D23: 2024 | E23: 0.00 | F23: 0.00 | G23: 0.00 | H23: 0.00 | I23: 0.00
D24: 2025 | E24: =F24+G24+H24+I24 -> 0.00 | F24: 0.00 | G24: 0.00 | H24: 0.00 | I24: 0.00
D25: 2026 | E25: 0.00 | F25: 0.00 | G25: 0.00 | H25: 0.00 | I25: 0.00
D26: 2027 | E26: 0.00 | F26: 0.00 | G26: 0.00 | H26: 0.00 | I26: 0.00
A27: 2 | B27: Субсидии на реализацию первоочередных мероприятий по модернизации объектов теплоснабжения и подготовке к отопительному сезону объектов коммунальной инфраструктуры, находящихся в муниципальной собственности, а также мероприятий по модернизации систем коммунальной инфраструктуры, которые находятся или будут находиться в муниципальной собственности, на 2021 - 2022 годы Основное мероприятие 1. "Проведение модернизации, реконструкции, нового строительства объектов теплоснабжения, мероприятий по подготовке объектов коммунальной инфраструктуры к отопительному сезону на территории Иркутской области" подпрограммы "Модернизация объектов коммунальной инфраструктуры Иркутской области" на 2019 - 2025 годы. | C27: Основное мероприятие 5.10. "Приобретение котельного и котельно-вспомогательного оборудования" Подпрограммы № 5 «Энергосбережение и повышение энергетической эффективности города Усолье-Сибирское» на 2019-2027 годы | D27: Итого | E27: 1,571,223.00 | F27: =SUM(F28:F36) -> 0.00 | G27: =SUM(G28:G36) -> 1,414,100.00 | H27: 0.00 | I27: 157,123.00
D28: 2019 | E28: 0.00 | F28: 0.00 | G28: 0.00 | H28: 0.00 | I28: 0.00
D29: 2020 | E29: 0.00 | F29: 0.00 | G29: 0.00 | H29: 0.00 | I29: 0.00
D30: 2021 | E30: 1,571,223.00 | F30: 0.00 | G30: 1,414,100.00 | H30: 0.00 | I30: 157,123.00
D31: 2022 | E31: 0.00 | F31: 0.00 | G31: 0.00 | H31: 0.00 | I31: 0.00
D32: 2023 | E32: 0.00 | F32: 0.00 | G32: 0.00 | H32: 0.00 | I32: 0.00
D33: 2024 | E33: 0.00 | F33: 0.00 | G33: 0.00 | H33: 0.00 | I33: 0.00
D34: 2025 | E34: =F34+G34+H34+I34 -> 0.00 | F34: 0.00 | G34: 0.00 | H34: 0.00 | I34: 0.00
D35: 2026 | E35: =F35+G35+H35+I35 -> 0.00 | F35: 0.00 | G35: 0.00 | H35: 0.00 | I35: 0.00
D36: 2027 | E36: =F36+G36+H36+I36 -> 0.00 | F36: 0.00 | G36: 0.00 | H36: 0.00 | I36: 0.00
A37: 3 | B37: Субсидии на строительство, реконструкцию и модернизацию объектов водоснабжения, водоотведения и очистки сточных вод, в том числе разработку проектной документации, а также на приобретение указанных объектов в муниципальную собственность Основное мероприятие 1. "Развитие и модернизация объектов водоснабжения, водоотведения и очистки сточных вод." подпрограммы "Чистая вода" на 2019 - 2025 годы Ведомственный проект «Модернизация коммунальной инфраструктуры» государственной программы Иркутской области «Развитие жилищно-коммунального хозяйства и повышение энергоэффективности Иркутской области» на 2024-2030 годы Мероприятие (результат): Разработана проектная документация на строительство, реконструкцию и модернизацию объектов водоснабжения, водоотведения и очистки сточных вод. Завершено строительство, реконструкция и модернизация объектов водоснабжения, водоотведения и очистки сточных вод. | C37: Основное мероприятие 8.1. Разработка проектной документации по объекту «Строительство канализационных очистных сооружений на территории города Усолье-Сибирское" Подпрограммы № 8 «Развитие и модернизация объектов водоснабжения, водоотведения и очистки сточных вод» на 2020-2027 годы | D37: Итого: | E37: =F37+G37+H37+I37 -> 67,712,487.99 | F37: =SUM(F38:F46) -> 0.00 | G37: =SUM(G38:G46) -> 58,039,100.00 | H37: 0.00 | I37: 9,673,387.99
D38: 2019 | E38: =F38+G38+H38+I38 -> 0.00 | F38: 0.00 | G38: 0.00 | H38: 0.00 | I38: 0.00
D39: 2020 | E39: 0.00 | F39: 0.00 | G39: 0.00 | H39: 0.00 | I39: 0.00
D40: 2021 | E40: 0.00 | F40: 0.00 | G40: 0.00 | H40: 0.00 | I40: 0.00
D41: 2022 | E41: =F41+G41+H41+I41 -> 32,243,999.43 | F41: 0.00 | G41: 29,019,600.00 | H41: 0.00 | I41: 3,224,399.43
D42: 2023 | E42: 32,243,994.28 | F42: 0.00 | G42: 29,019,500.00 | H42: 0.00 | I42: 3,224,494.28
D43: 2024 | E43: 3,224,494.28 | F43: 0.00 | G43: 0.00 | H43: 0.00 | I43: 3,224,494.28
D44: 2025 | E44: =F44+G44+H44+I44 -> 0.00 | F44: 0.00 | G44: 0.00 | H44: 0.00 | I44: 0.00
D45: 2026 | E45: =F45+G45+H45+I45 -> 0.00 | F45: 0.00 | G45: 0.00 | H45: 0.00 | I45: 0.00
D46: 2027 | E46: =F46+G46+H46+I46 -> 0.00 | F46: 0.00 | G46: 0.00 | H46: 0.00 | I46: 0.00
C47: Основное мероприятие 8.2. Разработка проектной документации по объекту «Строительство сетей водоснабжения на территории города Усолье-Сибирское» Подпрограммы № 8 «Развитие и модернизация объектов водоснабжения, водоотведения и очистки сточных вод» на 2020-2027 годы | D47: Итого: | E47: =F47+G47+H47+I47 -> 26,220,000.00 | F47: =SUM(F48:F56) -> 0.00 | G47: =SUM(G48:G56) -> 24,840,000.00 | H47: 0.00 | I47: 1,380,000.00
D48: 2019 | E48: 0.00 | F48: 0.00 | G48: 0.00 | H48: 0.00 | I48: 0.00
D49: 2020 | E49: 0.00 | F49: 0.00 | G49: 0.00 | H49: 0.00 | I49: 0.00
D50: 2021 | E50: 0.00 | F50: 0.00 | G50: 0.00 | H50: 0.00 | I50: 0.00
D51: 2022 | E51: 13,800,000.00 | F51: 0.00 | G51: 12,420,000.00 | H51: 0.00 | I51: 1,380,000.00
D52: 2023 | E52: 12,420,000.00 | F52: 0.00 | G52: 12,420,000.00 | H52: 0.00 | I52: 0.00
D53: 2024 | E53: 0.00 | F53: 0.00 | G53: 0.00 | H53: 0.00 | I53: 0.00
D54: 2025 | E54: =F54+G54+H54+I54 -> 0.00 | F54: 0.00 | G54: 0.00 | H54: 0.00 | I54: 0.00
D55: 2026 | E55: =F55+G55+H55+I55 -> 0.00 | F55: 0.00 | G55: 0.00 | H55: 0.00 | I55: 0.00
D56: 2027 | E56: =F56+G56+H56+I56 -> 0.00 | F56: 0.00 | G56: 0.00 | H56: 0.00 | I56: 0.00
C57: Основное мероприятие 8.3. «Строительство сетей водоснабжения по ул. Российской, Ленинградской» Подпрограммы № 8 «Развитие и модернизация объектов водоснабжения, водоотведения и очистки сточных вод» на 2020-2027 годы | D57: Итого: | E57: =F57+G57+H57+I57 -> 91,029,900.00 | F57: =SUM(F58:F66) -> 0.00 | G57: =SUM(G58:G66) -> 81,016,600.00 | H57: 0.00 | I57: 10,013,300.00
D58: 2019 | E58: =F58+G58+H58+I58 -> 0.00 | F58: 0.00 | G58: 0.00 | H58: 0.00 | I58: 0.00
D59: 2020 | E59: 0.00 | F59: 0.00 | G59: 0.00 | H59: 0.00 | I59: 0.00
D60: 2021 | E60: 0.00 | F60: 0.00 | G60: 0.00 | H60: 0.00 | I60: 0.00
D61: 2022 | E61: 0.00 | F61: 0.00 | G61: 0.00 | H61: 0.00 | I61: 0.00
D62: 2023 | E62: 0.00 | F62: 0.00 | G62: 0.00 | H62: 0.00 | I62: 0.00
D63: 2024 | E63: 91,029,900.00 | F63: 0.00 | G63: 81,016,600.00 | H63: 0.00 | I63: 10,013,300.00
D64: 2025 | E64: =F64+G64+H64+I64 -> 0.00 | F64: 0.00 | G64: 0.00 | H64: 0.00 | I64: 0.00
D65: 2026 | E65: =F65+G65+H65+I65 -> 0.00 | F65: 0.00 | G65: 0.00 | H65: 0.00 | I65: 0.00
D66: 2027 | E66: =F66+G66+H66+I66 -> 0.00 | F66: 0.00 | G66: 0.00 | H66: 0.00 | I66: 0.00
A67: Всего по Государственной программе Иркутской области «Развитие жилищно-коммунального хозяйства и повышение энергоэффективности Иркутской области» на 2019-2027 годы: | D67: Итого: | E67: =F67+G67+H67+I67 -> 187,411,560.99 | F67: =SUM(F68:F76) -> 0.00 | G67: =SUM(G68:G76) -> 166,090,200.00 | H67: 0.00 | I67: 21,321,360.99
D68: 2019 | E68: =F68+G68+H68+I68 -> 0.00 | F68: =F18+F28+F38+F48+F58 -> 0.00 | G68: 0.00 | H68: 0.00 | I68: 0.00
D69: 2020 | E69: =F69+G69+H69+I69 -> 0.00 | F69: 0.00 | G69: 0.00 | H69: 0.00 | I69: 0.00
D70: 2021 | E70: 2,449,173.00 | F70: 0.00 | G70: 2,194,500.00 | H70: 0.00 | I70: 254,673.00
D71: 2022 | E71: =F71+G71+H71+I71 -> 46,043,999.43 | F71: 0.00 | G71: 41,439,600.00 | H71: 0.00 | I71: 4,604,399.43
D72: 2023 | E72: 44,663,994.28 | F72: 0.00 | G72: 41,439,500.00 | H72: 0.00 | I72: 3,224,494.28
D73: 2024 | E73: =F73+G73+H73+I73 -> 94,254,394.28 | F73: =F23+F33+F43+F53+F63 -> 0.00 | G73: =G23+G33+G43+G53+G63 -> 81,016,600.00 | H73: 0.00 | I73: =I23+I33+I43+I53+I63 -> 13,237,794.28
D74: 2025 | E74: =F74+G74+H74+I74 -> 0.00 | F74: =F24+F34+F44+F54+F64 -> 0.00 | G74: 0.00 | H74: 0.00 | I74: 0.00
D75: 2026 | E75: =F75+G75+H75+I75 -> 0.00 | F75: 0.00 | G75: 0.00 | H75: 0.00 | I75: 0.00
D76: 2027 | E76: =F76+G76+H76+I76 -> 0.00 | F76: 0.00 | G76: 0.00 | H76: 0.00 | I76: 0.00
A77: 2 | B77: Государственная программа Иркутской области «Развитие сельского хозяйства и регулирование рынков сельскохозяйственной продукции, сырья и продовольствия» на 2019-2027 годы Государственная программа Иркутской области «Развитие сельского хозяйства и регулирование рынков сельскохозяйственной продукции, сырья и продовольствия» на 2024-2030 годы
A78: 1 | B78: Субсидии на реализацию мероприятий по капитальному ремонту и ремонту автомобильных дорог общего пользования местного значения к садоводческим или огородническим некоммерческим товариществам. Основное мероприятие «Оказание содействия в развитии инфраструктуры территорий садоводческих или огороднических некоммерческих товариществ Иркутской области» подпрограммы «Создание условий для развития садоводческих или огороднических некоммерческих товариществ Иркутской области» на 2019-2027 годы Региональный проект «Развитие садоводческих и огороднических некоммерческих товариществ Иркутской области»государственной программы Иркутской области «Развитие сельского хозяйства и регулирование рынков сельскохозяйственной продукции, сырья и продовольствия» на 2024-2030 годы | C78: Основное мероприятие 3.2. "Ремонт дорог к садоводствам" Подпрограммы № 3 "Развитие дорожного хозяйства города Усолье-Сибирское" на 2019-2027 годы | D78: Итого | E78: =F78+G78+H78+I78 -> 139,273,593.80 | F78: =SUM(F79:F87) -> 0.00 | G78: =SUM(G79:G87) -> 125,290,600.00 | H78: 0.00 | I78: 13,982,993.80
D79: 2019 | E79: =F79+G79+H79+I79 -> 5,912,073.85 | F79: 0.00 | G79: 5,076,400.00 | H79: 0.00 | I79: 835,673.85
D80: 2020 | E80: 3,707,132.74 | F80: 0.00 | G80: 3,449,800.00 | H80: 0.00 | I80: 257,332.74
D81: 2021 | E81: 8,560,281.00 | F81: 0.00 | G81: 7,704,200.00 | H81: 0.00 | I81: 856,081.00
D82: 2022 | E82: 112,098,810.43 | F82: 0.00 | G82: 101,004,400.00 | H82: 0.00 | I82: 11,094,410.43
D83: 2023 | E83: 1,871,930.22 | F83: 0.00 | G83: 1,716,000.00 | H83: 0.00 | I83: 155,930.22
D84: 2024 | E84: 7,123,365.56 | F84: 0.00 | G84: 6,339,800.00 | H84: 0.00 | I84: 783,565.56
D85: 2025 | E85: =F85+G85+H85+I85 -> 0.00 | F85: 0.00 | G85: 0.00 | H85: 0.00 | I85: 0.00
D86: 2026 | E86: =F86+G86+H86+I86 -> 0.00 | F86: 0.00 | G86: 0.00 | H86: 0.00 | I86: 0.00
D87: 2027 | E87: =F87+G87+H87+I87 -> 0.00 | F87: 0.00 | G87: 0.00 | H87: 0.00 | I87: 0.00
A88: Всего по Государственной программе Иркутской области «Развитие сельского хозяйства и регулирование рынков сельскохозяйственной продукции, сырья и продовольствия» на 2019-2027 годы: | D88: Итого | E88: =F88+G88+H88+I88 -> 139,273,593.80 | F88: =SUM(F89:F97) -> 0.00 | G88: =SUM(G89:G97) -> 125,290,600.00 | H88: 0.00 | I88: 13,982,993.80
D89: 2019 | E89: 5,912,073.85 | F89: =F79 -> 0.00 | G89: =G79 -> 5,076,400.00 | H89: 0.00 | I89: 835,673.85
D90: 2020 | E90: =F90+G90+H90+I90 -> 3,707,132.74 | F90: =F80 -> 0.00 | G90: 3,449,800.00 | H90: =H80 -> 0.00 | I90: 257,332.74
D91: 2021 | E91: 8,560,281.00 | F91: 0.00 | G91: 7,704,200.00 | H91: =H81 -> 0.00 | I91: 856,081.00
D92: 2022 | E92: 112,098,810.43 | F92: 0.00 | G92: 101,004,400.00 | H92: =H82 -> 0.00 | I92: 11,094,410.43
D93: 2023 | E93: 1,871,930.22 | F93: 0.00 | G93: 1,716,000.00 | H93: =H83 -> 0.00 | I93: 155,930.22
D94: 2024 | E94: 7,123,365.56 | F94: 0.00 | G94: 6,339,800.00 | H94: =H84 -> 0.00 | I94: 783,565.56
D95: 2025 | E95: =F95+G95+H95+I95 -> 0.00 | F95: 0.00 | G95: 0.00 | H95: 0.00 | I95: 0.00
D96: 2026 | E96: =F96+G96+H96+I96 -> 0.00 | F96: 0.00 | G96: 0.00 | H96: 0.00 | I96: 0.00
D97: 2027 | E97: =F97+G97+H97+I97 -> 0.00 | F97: 0.00 | G97: 0.00 | H97: 0.00 | I97: 0.00
A98: 3 | B98: Государственная программа Иркутской области «Развитие дорожного хозяйства и сети искусственных сооружений» на 2019-2027 годы Государственная программа Иркутской области «Развитие дорожного хозяйства и сети искусственных сооружений» на 2024-2030 годы
A99: 1 | B99: Субсидии на реализацию мероприятий по строительству, реконструкции, капитальному ремонту, ремонту автомобильных дорог общего пользования местного значения. Основное мероприятие «Строительство, реконструкция, капитальный ремонт, ремонт, содержание автомобильных дорог общего пользования местного значения, предусматривающие софинансирование из федерального и (или) областного бюджетов» на 2019 - 2025 годы, в рамках регионального проекта «Дорожная сеть» подпрограммы «Дорожное хозяйство» на 2019 - 2027 годы Региональный проект «Региональная и местная дорожная сеть (Иркутская область)» государственной программы Иркутской области «Развитие дорожного хозяйства» на 2024-2030 годы. Мероприятие (результат): Выполнены работы по содержанию автомобильных дорог общего пользования регионального или межмуниципального значения для обеспечения безопасного и бесперебойного проезда. | C99: Мероприятие 3.4.1. Ремонт автомобильных дорог Подпрограммы № 3 "Развитие дорожного хозяйства города Усолье-Сибирское" на 2019-2027 годы | D99: Итого | E99: =F99+G99+H99+I99 -> 25,252,530.00 | F99: =SUM(F100:F108) -> 25,000,000.00 | G99: =SUM(G100:G108) -> 0.00 | H99: 0.00 | I99: 252,530.00
D100: 2019 | E100: =F100+G100+H100+I100 -> 0.00 | F100: 0.00 | G100: 0.00 | H100: 0.00 | I100: 0.00
D101: 2020 | E101: 0.00 | F101: 0.00 | G101: 0.00 | H101: 0.00 | I101: 0.00
D102: 2021 | E102: 25,252,530.00 | F102: 25,000,000.00 | G102: 0.00 | H102: 0.00 | I102: 252,530.00
D103: 2022 | E103: 0.00 | F103: 0.00 | G103: 0.00 | H103: 0.00 | I103: 0.00
D104: 2023 | E104: 0.00 | F104: 0.00 | G104: 0.00 | H104: 0.00 | I104: 0.00
D105: 2024 | E105: =F105+G105+H105+I105 -> 0.00 | F105: 0.00 | G105: 0.00 | H105: 0.00 | I105: 0.00
D106: 2025 | E106: =F106+G106+H106+I106 -> 0.00 | F106: 0.00 | G106: 0.00 | H106: 0.00 | I106: 0.00
D107: 2026 | E107: =F107+G107+H107+I107 -> 0.00 | F107: 0.00 | G107: 0.00 | H107: 0.00 | I107: 0.00
D108: 2027 | E108: =F108+G108+H108+I108 -> 0.00 | F108: 0.00 | G108: 0.00 | H108: 0.00 | I108: 0.00
C109: Мероприятие 3.9.1 "Ремонт автомобильных дорог в рамках реализации национального проекта «Безопасные качественные дороги»" Подпрограммы № 3 "Развитие дорожного хозяйства города Усолье-Сибирское" на 2019-2027 годы | D109: Итого | E109: =F109+G109+H109+I109 -> 1,913,663,700.12 | F109: =SUM(F110:F118) -> 466,586,200.00 | G109: =SUM(G110:G118) -> 1,228,885,700.00 | H109: 0.00 | I109: 218,191,800.12
D110: 2019 | E110: 65,424,000.00 | F110: 56,918,800.00 | G110: 0.00 | H110: 0.00 | I110: 8,505,200.00
D111: 2020 | E111: 237,571,781.50 | F111: 206,687,400.00 | G111: 0.00 | H111: 0.00 | I111: 30,884,381.50
D112: 2021 | E112: 233,225,713.08 | F112: 202,980,000.00 | G112: 0.00 | H112: 0.00 | I112: 30,245,713.08
D113: 2022 | E113: =F113+G113+H113+I113 -> 335,163,259.00 | F113: 0.00 | G113: 301,646,900.00 | H113: 0.00 | I113: 33,516,359.00
D114: 2023 | E114: 470,910,050.63 | F114: 0.00 | G114: 419,109,900.00 | H114: 0.00 | I114: 51,800,150.63
D115: 2024 | E115: 571,368,895.91 | F115: 0.00 | G115: 508,128,900.00 | H115: 0.00 | I115: 63,239,995.91
D116: 2025 | E116: =F116+G116+H116+I116 -> 0.00 | F116: 0.00 | G116: 0.00 | H116: 0.00 | I116: 0.00
D117: 2026 | E117: =F117+G117+H117+I117 -> 0.00 | F117: 0.00 | G117: 0.00 | H117: 0.00 | I117: 0.00
D118: 2027 | E118: =F118+G118+H118+I118 -> 0.00 | F118: 0.00 | G118: 0.00 | H118: 0.00 | I118: 0.00
C119: Мероприятие 3.9.2. "Капитальный ремонт автомобильной дороги в г. Усолье-Сибирское Иркутской области ул. Интернациональная" Подпрограммы № 3 "Развитие дорожного хозяйства города Усолье-Сибирское" на 2019-2027 годы | D119: Итого | E119: =F119+G119+H119+I119 -> 106,263,251.00 | F119: =SUM(F120:F128) -> 0.00 | G119: =SUM(G120:G128) -> 92,449,000.00 | H119: 0.00 | I119: 13,814,251.00
D120: 2019 | E120: 106,263,251.00 | F120: 0.00 | G120: 92,449,000.00 | H120: 0.00 | I120: 13,814,251.00
D121: 2020 | E121: 0.00 | F121: 0.00 | G121: 0.00 | H121: 0.00 | I121: 0.00
D122: 2021 | E122: 0.00 | F122: 0.00 | G122: 0.00 | H122: 0.00 | I122: 0.00
D123: 2022 | E123: 0.00 | F123: 0.00 | G123: 0.00 | H123: 0.00 | I123: 0.00
D124: 2023 | E124: 0.00 | F124: 0.00 | G124: 0.00 | H124: 0.00 | I124: 0.00
D125: 2024 | E125: 0.00 | F125: 0.00 | G125: 0.00 | H125: 0.00 | I125: 0.00
D126: 2025 | E126: =F126+G126+H126+I126 -> 0.00 | F126: 0.00 | G126: 0.00 | H126: 0.00 | I126: 0.00
D127: 2026 | E127: =F127+G127+H127+I127 -> 0.00 | F127: 0.00 | G127: 0.00 | H127: 0.00 | I127: 0.00
D128: 2027 | E128: =F128+G128+H128+I128 -> 0.00 | F128: 0.00 | G128: 0.00 | H128: 0.00 | I128: 0.00
C129: Мероприятие 3.9.3. "Ремонт автомобильных дорог в рамках реализации национального проекта «Безопасные качественные дороги» (автомобильная дорога пр-кт Комсомольский)" Подпрограммы № 3 "Развитие дорожного хозяйства города Усолье-Сибирское" на 2019-2027 годы | D129: Итого | E129: =F129+G129+H129+I129 -> 148,762,578.95 | F129: =SUM(F130:F138) -> 141,324,450.00 | G129: =SUM(G130:G138) -> 0.00 | H129: 0.00 | I129: 7,438,128.95
D130: 2019 | E130: =F130+G130+H130+I130 -> 0.00 | F130: 0.00 | G130: 0.00 | H130: 0.00 | I130: 0.00
D131: 2020 | E131: 0.00 | F131: 0.00 | G131: 0.00 | H131: 0.00 | I131: 0.00
D132: 2021 | E132: 148,762,578.95 | F132: 141,324,450.00 | G132: 0.00 | H132: 0.00 | I132: 7,438,128.95
D133: 2022 | E133: 0.00 | F133: 0.00 | G133: 0.00 | H133: 0.00 | I133: 0.00
D134: 2023 | E134: 0.00 | F134: 0.00 | G134: 0.00 | H134: 0.00 | I134: 0.00
D135: 2024 | E135: 0.00 | F135: 0.00 | G135: 0.00 | H135: 0.00 | I135: 0.00
D136: 2025 | E136: =F136+G136+H136+I136 -> 0.00 | F136: 0.00 | G136: 0.00 | H136: 0.00 | I136: 0.00
D137: 2026 | E137: =F137+G137+H137+I137 -> 0.00 | F137: 0.00 | G137: 0.00 | H137: 0.00 | I137: 0.00
D138: 2027 | E138: =F138+G138+H138+I138 -> 0.00 | F138: 0.00 | G138: 0.00 | H138: 0.00 | I138: 0.00
C139: Основное мероприятие 3.14. Развитие и приведение в нормативное состояние автомобильных дорог общего пользования местного значения, включающих искусственные дорожные сооружения, в рамках национального проекта «Инфраструктура для жизни» | D139: Итого | E139: =F139+G139+H139+I139 -> 529,527,937.65 | F139: 0.00 | G139: =SUM(G140:G148) -> 472,458,100.00 | H139: 0.00 | I139: 57,069,837.65
D140: 2019 | E140: =F140+G140+H140+I140 -> 0.00 | F140: 0.00 | G140: 0.00 | H140: 0.00 | I140: 0.00
D141: 2020 | E141: 0.00 | F141: 0.00 | G141: 0.00 | H141: 0.00 | I141: 0.00
D142: 2021 | E142: 0.00 | F142: 0.00 | G142: 0.00 | H142: 0.00 | I142: 0.00
D143: 2022 | E143: 0.00 | F143: 0.00 | G143: 0.00 | H143: 0.00 | I143: 0.00
D144: 2023 | E144: 0.00 | F144: 0.00 | G144: 0.00 | H144: 0.00 | I144: 0.00
D145: 2024 | E145: 0.00 | F145: 0.00 | G145: 0.00 | H145: 0.00 | I145: 0.00
D146: 2025 | E146: =F146+G146+H146+I146 -> 248,629,061.24 | F146: 0.00 | G146: 222,458,100.00 | H146: 0.00 | I146: 26,170,961.24
D147: 2026 | E147: =F147+G147+H147+I147 -> 280,898,876.41 | F147: 0.00 | G147: 250,000,000.00 | H147: 0.00 | I147: 30,898,876.41
D148: 2027 | E148: =F148+G148+H148+I148 -> 0.00 | F148: 0.00 | G148: 0.00 | H148: 0.00 | I148: 0.00
A149: Всего по Государственной программе Иркутской области «Развитие дорожного хозяйства и сети искусственных сооружений» на 2019-2027 годы: | D149: Итого | E149: =F149+G149+H149+I149 -> 2,723,469,997.72 | F149: =SUM(F150:F158) -> 632,910,650.00 | G149: =SUM(G150:G158) -> 1,793,792,800.00 | H149: 0.00 | I149: 296,766,547.72
D150: 2019 | E150: =F150+G150+H150+I150 -> 171,687,251.00 | F150: =F100+F110+F120+F130 -> 56,918,800.00 | G150: 92,449,000.00 | H150: 0.00 | I150: 22,319,451.00
D151: 2020 | E151: 237,571,781.50 | F151: 206,687,400.00 | G151: 0.00 | H151: 0.00 | I151: 30,884,381.50
D152: 2021 | E152: 407,240,822.03 | F152: 369,304,450.00 | G152: 0.00 | H152: 0.00 | I152: 37,936,372.03
D153: 2022 | E153: 335,163,259.00 | F153: 0.00 | G153: 301,646,900.00 | H153: 0.00 | I153: 33,516,359.00
D154: 2023 | E154: =F154+G154+H154+I154 -> 470,910,050.63 | F154: 0.00 | G154: 419,109,900.00 | H154: 0.00 | I154: 51,800,150.63
D155: 2024 | E155: 571,368,895.91 | F155: 0.00 | G155: 508,128,900.00 | H155: 0.00 | I155: 63,239,995.91
D156: 2025 | E156: =F156+G156+H156+I156 -> 248,629,061.24 | F156: 0.00 | G156: =G106+G116+G126+G136+G146 -> 222,458,100.00 | H156: 0.00 | I156: =I106+I116+I126+I136+I146 -> 26,170,961.24
D157: 2026 | E157: =F157+G157+H157+I157 -> 280,898,876.41 | F157: 0.00 | G157: =G107+G117+G127+G137+G147 -> 250,000,000.00 | H157: 0.00 | I157: =I107+I117+I127+I137+I147 -> 30,898,876.41
D158: 2027 | E158: =F158+G158+H158+I158 -> 0.00 | F158: 0.00 | G158: 0.00 | H158: 0.00 | I158: =I108+I118+I128+I138+I148 -> 0.00
A159: 4 | B159: Государственная программа Иркутской области «Экономическое развитие и инновационная экономика» на 2019-2025 годы, Государственная программа Иркутской области «Экономическое развитие и инновационная экономика» на 2026-2030 годы
A160: 1 | B160: Субсидии на реализацию мероприятий перечня проектов народных инициатив. Основное мероприятие «Обеспечение эффективного управления экономическим развитием Иркутской области» подпрограммы «Государственная политика в сфере экономического развития Иркутской области» на 2019-2025 годы | C160: Основное мероприятие 3.8. "Ремонт автомобильной дороги по ул. Ватутина, по проспекту Комсомольский (обустройство остановки городского общественного транспорта)" Подпрограммы № 3 "Развитие дорожного хозяйства города Усолье-Сибирское" на 2019-2027 годы | D160: Итого | E160: =F160+G160+H160+I160 -> 504,425.07 | F160: =SUM(F161:F169) -> 0.00 | G160: =SUM(G161:G169) -> 331,907.83 | H160: 0.00 | I160: 172,517.24
D161: 2019 | E161: =F161+G161+H161+I161 -> 504,425.07 | F161: 0.00 | G161: 331,907.83 | H161: 0.00 | I161: 172,517.24
D162: 2020 | E162: =F162+G162+H162+I162 -> 0.00 | F162: 0.00 | G162: 0.00 | H162: 0.00 | I162: 0.00
D163: 2021 | E163: 0.00 | F163: 0.00 | G163: 0.00 | H163: 0.00 | I163: 0.00
D164: 2022 | E164: 0.00 | F164: 0.00 | G164: 0.00 | H164: 0.00 | I164: 0.00
D165: 2023 | E165: 0.00 | F165: 0.00 | G165: 0.00 | H165: 0.00 | I165: 0.00
D166: 2024 | E166: 0.00 | F166: 0.00 | G166: 0.00 | H166: 0.00 | I166: 0.00
D167: 2025 | E167: =F167+G167+H167+I167 -> 0.00 | F167: 0.00 | G167: 0.00 | H167: 0.00 | I167: 0.00
D168: 2026 | E168: =F168+G168+H168+I168 -> 0.00 | F168: 0.00 | G168: 0.00 | H168: 0.00 | I168: 0.00
D169: 2027 | E169: =F169+G169+H169+I169 -> 0.00 | F169: 0.00 | G169: 0.00 | H169: 0.00 | I169: 0.00
C170: Основное мероприятие 4.4. "Организация уличного освещения" Подпрограмма № 4 «Организация освещения улиц на территории города Усолье-Сибирское» на 2019-2027 годы | D170: Итого | E170: =F170+G170+H170+I170 -> 3,584,247.22 | F170: =SUM(F171:F179) -> 0.00 | G170: =SUM(G171:G179) -> 3,225,822.24 | H170: 0.00 | I170: 358,424.98
D171: 2019 | E171: =F171+G171+H171+I171 -> 0.00 | F171: 0.00 | G171: 0.00 | H171: 0.00 | I171: 0.00
D172: 2020 | E172: =F172+G172+H172+I172 -> 0.00 | F172: 0.00 | G172: 0.00 | H172: 0.00 | I172: 0.00
D173: 2021 | E173: 2,242,890.01 | F173: 0.00 | G173: 2,018,601.00 | H173: 0.00 | I173: 224,289.01
D174: 2022 | E174: 1,341,357.21 | F174: 0.00 | G174: 1,207,221.24 | H174: 0.00 | I174: 134,135.97
D175: 2023 | E175: 0.00 | F175: 0.00 | G175: 0.00 | H175: 0.00 | I175: 0.00
D176: 2024 | E176: =F176+G176+H176+I176 -> 0.00 | F176: 0.00 | G176: 0.00 | H176: 0.00 | I176: 0.00
D177: 2025 | E177: =F177+G177+H177+I177 -> 0.00 | F177: 0.00 | G177: 0.00 | H177: 0.00 | I177: 0.00
D178: 2026 | E178: =F178+G178+H178+I178 -> 0.00 | F178: 0.00 | G178: 0.00 | H178: 0.00 | I178: 0.00
D179: 2027 | E179: =F179+G179+H179+I179 -> 0.00 | F179: 0.00 | G179: 0.00 | H179: 0.00 | I179: 0.00
C180: Основное мероприятие 6.4. "Обустройство пешеходных дорожек" Подпрограммы № 6 «Благоустройство территории города Усолье-Сибирское» на 2019-2027 годы | D180: Итого | E180: 12,394,689.88 | F180: =SUM(F181:F189) -> 0.00 | G180: =SUM(G181:G189) -> 11,146,515.78 | H180: 0.00 | I180: 1,248,174.10
D181: 2019 | E181: 0.00 | F181: 0.00 | G181: 0.00 | H181: 0.00 | I181: 0.00
D182: 2020 | E182: 9,855,433.92 | F182: 0.00 | G182: 8,869,872.79 | H182: 0.00 | I182: 985,561.13
D183: 2021 | E183: 1,159,479.29 | F183: 0.00 | G183: 1,043,531.36 | H183: 0.00 | I183: 115,947.93
D184: 2022 | E184: 511,050.57 | F184: 0.00 | G184: 459,945.42 | H184: 0.00 | I184: 51,105.15
D185: 2023 | E185: 868,726.10 | F185: 0.00 | G185: 773,166.21 | H185: 0.00 | I185: 95,559.89
D186: 2024 | E186: =F186+G186+H186+I186 -> 0.00 | F186: 0.00 | G186: 0.00 | H186: 0.00 | I186: 0.00
D187: 2025 | E187: =F187+G187+H187+I187 -> 0.00 | F187: 0.00 | G187: 0.00 | H187: 0.00 | I187: 0.00
D188: 2026 | E188: =F188+G188+H188+I188 -> 0.00 | F188: 0.00 | G188: 0.00 | H188: 0.00 | I188: 0.00
D189: 2027 | E189: =F189+G189+H189+I189 -> 0.00 | F189: 0.00 | G189: 0.00 | H189: 0.00 | I189: 0.00
C190: Основное мероприятие 6.7. "Благоустройство территории города (приобретение и установка 6-и остановочных павильонов)" Подпрограммы № 6 «Благоустройство территории города Усолье-Сибирское» на 2019-2027 годы | D190: Итого | E190: =F190+G190+H190+I190 -> 583,800.00 | F190: =SUM(F191:F199) -> 0.00 | G190: =SUM(G191:G199) -> 507,905.98 | H190: 0.00 | I190: 75,894.02
D191: 2019 | E191: =F191+G191+H191+I191 -> 583,800.00 | F191: 0.00 | G191: 507,905.98 | H191: 0.00 | I191: 75,894.02
D192: 2020 | E192: 0.00 | F192: 0.00 | G192: 0.00 | H192: 0.00 | I192: 0.00
D193: 2021 | E193: 0.00 | F193: 0.00 | G193: 0.00 | H193: 0.00 | I193: 0.00
D194: 2022 | E194: 0.00 | F194: 0.00 | G194: 0.00 | H194: 0.00 | I194: 0.00
D195: 2023 | E195: 0.00 | F195: 0.00 | G195: 0.00 | H195: 0.00 | I195: 0.00
D196: 2024 | E196: 0.00 | F196: 0.00 | G196: 0.00 | H196: 0.00 | I196: 0.00
D197: 2025 | E197: =F197+G197+H197+I197 -> 0.00 | F197: 0.00 | G197: 0.00 | H197: 0.00 | I197: 0.00
D198: 2026 | E198: 0.00 | F198: 0.00 | G198: 0.00 | H198: 0.00 | I198: 0.00
D199: 2027 | E199: 0.00 | F199: 0.00 | G199: 0.00 | H199: 0.00 | I199: 0.00
C200: Основное мероприятие 6.8. "Благоустройство территории города (приобретение детских игровых и спортивных площадок (21 комплект))" Подпрограмма № 6 «Благоустройство территории города Усолье-Сибирское» на 2019-2027 годы | D200: Итого | E200: =F200+G200+H200+I200 -> 9,618,835.00 | F200: =SUM(F201:F209) -> 0.00 | G200: =SUM(G201:G209) -> 8,368,386.12 | H200: 0.00 | I200: 1,250,448.88
D201: 2019 | E201: =F201+G201+H201+I201 -> 9,618,835.00 | F201: 0.00 | G201: 8,368,386.12 | H201: 0.00 | I201: 1,250,448.88
D202: 2020 | E202: 0.00 | F202: 0.00 | G202: 0.00 | H202: 0.00 | I202: 0.00
D203: 2021 | E203: 0.00 | F203: 0.00 | G203: 0.00 | H203: 0.00 | I203: 0.00
... 296 more rows
